Cogmind - Beta 13 @@@ ROGUE MODE // 2024.05.21 @ 15:03:54 Player: Billy Result: Destroyed by Y-45 Defender with Heavy Assault Rifle Performance ------------- Evolutions (1) 500 Regions Visited (2) 400 Robots Destroyed (46) 230 Value Destroyed (1013) 1013 Prototype IDs (0) 0 Alien Tech Used (0) 0 Bonus (0) 0 TOTAL SCORE: 2143 Bonus ------- None Cogmind --------- Core Integrity 0/400 Matter 77/300 Energy 265/265 System Corruption 4% Temperature Cool (15) Movement Core (500) Ox9 Location -9/Materials Parts ------- > --- POWER (1) -------- Reinforced Ion Engine > --- PROPULSION (4) --- (None) > --- UTILITY (2) ------ Large Storage Unit > --- WEAPON (2) ------- (None) > --- INVENTORY (15) --- Ion Engine Light Ion Engine Reinforced Ion Engine Reinforced Ion Engine Heat Sink Large Storage Unit Improved Targeting Computer Core Shielding Light Armor Plating System Shield System Shield Assault Rifle Light Cannon Datajack Peak State ------------ > --- POWER ------------ Reinforced Ion Engine > --- PROPULSION ------- Aluminum Leg Aluminum Leg VTOL Module VTOL Module > --- UTILITY ---------- Large Storage Unit Light Armor Plating > --- WEAPON ----------- Grenade Launcher Grenade Launcher > --- INVENTORY -------- Ion Engine Light Ion Engine Reinforced Ion Engine Reinforced Ion Engine Light Treads Heat Sink Small Storage Unit Large Storage Unit Core Shielding Light Armor Plating System Shield System Shield Assault Rifle Light Cannon Datajack [Rating: 14] Favorites ----------- Power Ion Engine Engine Ion Engine Propulsion Aluminum Leg Treads Light Treads Leg Aluminum Leg Flight Unit VTOL Module Utility Light Armor Plating Device Heat Sink Storage Large Storage Unit Processor Visual Processing Unit Protection Light Armor Plating Weapon Grenade Launcher Energy Gun EM Pulse Gun Ballistic Gun Assault Rifle Ballistic Cannon Light Cannon Launcher Grenade Launcher Build | -11 -10 -9 ------- Run | Yrd Mat Mat Slots Evolved 2 | . . 2 Power . | . . . Propulsion 2 | . . 2 Utility . | . . . Weapon . | . . . Parts Attached 31 | 6 15 10 Power 5 | 1 3 1 Engine 5 | 1 3 1 Core . | . . . Reactor . | . . . Propulsion 10 | 2 4 4 Treads 1 | . . 1 Leg 7 | 2 4 1 Wheel . | . . . Hover . | . . . Flight 2 | . . 2 Utility 8 | 1 6 1 Device 1 | . 1 . Storage 3 | 1 2 . Processor 1 | . 1 . Hackware . | . . . Protection 3 | . 2 1 Artifact . | . . . Weapon 8 | 2 2 4 Energy Gun 1 | 1 . . Energy Cannon . | . . . Ballistic Gun 2 | 1 1 . Ballistic Cannon 1 | . . 1 Launcher 4 | . 1 3 Special Weapon . | . . . Impact Weapon . | . . . Slashing Weapon . | . . . Piercing Weapon . | . . . Special Melee Weapon . | . . . Unidentified Prototypes . | . . . Parts Lost 12 | . 3 9 Power 1 | . 1 . Propulsion 7 | . 1 6 Utility 2 | . 1 1 Weapon 2 | . . 2 Highest Loss Streak 6 | . 2 6 To Critical Strikes . | . . . Average Slot Usage (%) 93 | . 97 85 Engine 11 | . 12 11 Leg 25 | . 27 20 Flight 3 | . . 10 Device 1 | . 2 . Storage 11 | . 11 11 Processor 1 | . 2 . Protection 10 | . 10 10 Energy Gun 3 | . 5 . Ballistic Gun 9 | . 13 1 Ballistic Cannon 1 | . . 3 Launcher 10 | . 8 15 Naked Turns . | . . . Heaviest Build 39 | 8 33 39 Greatest Support 20 | 20 20 20 Greatest Overweight (x) 10 | . 1 10 Average Overweight (x) . | . . 1 Largest Inventory Capacity 15 | 5 15 15 Average Capacity 13 | 5 12 15 Most Carried 15 | 2 10 15 Average Carried 9 | . 7 14 Final Capacity 15 | 5 15 15 Final Carried 14 | 2 10 14 Class Distribution -------------------- 90% | Mutant 9% | Scavenger-Mutant Dominant Class ---------------- Mutant | -10/Materials Mutant | -9/Materials Resources | -11 -10 -9 ----------- Run | Yrd Mat Mat Matter Collected 800 | 246 283 271 Remotely . | . . . Salvage Created 924 | 57 606 261 Parts 95 | 5 55 35 Haulers Intercepted . | . . . Recyclers Shooed . | . . . Parts Field Recycled . | . . . Retrieved Matter . | . . . Parts Self-Destructed . | . . . Prevented . | . . . Kills | -11 -10 -9 ------- Run | Yrd Mat Mat Combat Hostiles Destroyed 30 | 1 18 11 Guns 14 | 1 13 . AOE 16 | . 5 11 Classes Destroyed 8 | 2 4 2 Worker 3 | 1 1 1 Builder 5 | . 3 2 Mechanic 1 | . . 1 Operator 3 | . 2 1 Watcher 4 | . 3 1 Swarmer 12 | . 8 4 Grunt 13 | 1 10 2 Sentry 5 | . . 5 Best Kill Streak 8 | 1 8 5 Combat Bots Only 8 | 1 8 4 Max Kills in Single Turn 4 | 1 4 3 Gunslinging . | . . . Exploded 3 | . 2 3 Melee . | . . . Uniques/NPCs Destroyed . | . . . Combat | -11 -10 -9 -------- Run | Yrd Mat Mat Hostile Shots Fired 218 | 4 106 108 Missed 72 | 1 34 37 Damage Taken 2263 | 32 746 1485 Core 565 | . 156 409 Absorbed by Shields . | . . . Core Remaining (%) 68 | 100 37 . Volleys Fired 80 | 4 50 26 Largest 2 | 2 2 2 Hottest 70 | 60 70 60 Shots Fired 157 | 8 100 49 Gun 114 | 8 94 12 Cannon 1 | . . 1 Launcher 42 | . 6 36 Special . | . . . Kinetic 66 | 4 49 13 Thermal . | . . . Explosive 42 | . 6 36 Electromagnetic 49 | 4 45 . Robot Hit Streak 18 | 2 8 18 Robot Miss Streak 10 | 1 10 3 Penetration Max . | . . . Secondary Targets 2 | . 2 . Max Gunslinging Chain 1 | . 1 . Shots Hit Robots 85 | 4 48 33 Core Hits 76 | 2 40 34 Critical Kills 1 | . 1 . Critical Parts Destroyed . | . . . Critical Strikes 2 | . 2 . Destroy 1 | . 1 . Corrupt 1 | . 1 . Melee Attacks . | . . . Impact . | . . . Slashing . | . . . Piercing . | . . . Sneak Attacks . | . . . Combat Hostiles . | . . . Follow-up Attacks . | . . . Damage Inflicted 2229 | 42 1106 1081 Guns 742 | 42 567 133 Cannons 19 | . . 19 Explosions 1466 | . 539 927 Melee . | . . . Ramming 2 | . . 2 Kinetic 381 | 15 214 152 Thermal 223 | . 223 . Explosive 1243 | . 316 927 Electromagnetic 380 | 27 353 . Impact . | . . . Slashing . | . . . Piercing . | . . . Highest Corruption 4 | . 1 4 Average Corruption 2 | . 1 4 Corruption Purged . | . . . Corruption Blocked . | . . . Effects 42 | . 10 32 Message Errors 7 | . 1 6 Matter Fused 7 | . 1 6 Heat Flow Errors 2 | . 1 1 Energy Discharges 9 | . 4 5 Data Loss (minor) 11 | . 2 9 Data Loss (major) 3 | . . 3 Misfires 1 | . . 1 Alerts 1 | . 1 . Weapon Failures 1 | . . 1 Overload Shots . | . . . Overflow Damage 14 | . 12 2 Projectiles . | . . . Explosions 14 | . 12 2 Melee . | . . . Knockbacks . | . . . Impact . | . . . Kinetic . | . . . Secondary . | . . . Self-Inflicted Damage 160 | . 66 94 Shots 9 | . 4 5 Rammed 3 | . . 3 Targets Rammed 3 | . . 3 Kicked . | . . . Crushed . | . . . Highest Temperature 179 | 32 179 157 Average Temperature 41 | 19 47 34 Received Heat Transfer 606 | 18 168 420 Siege Activations . | . . . Robots Corrupted . | . . . Combat Hostiles . | . . . Parts Fried . | . . . Impact Corruptions . | . . . Robots Melted . | . . . Combat Hostiles . | . . . Parts Melted . | . . . Heat Transferred 300 | . 300 . Parts Sabotaged . | . . . Parts Stolen . | . . . Parts Stripped . | . . . Power Chain Reactions 3 | . 3 . Alert | -11 -10 -9 ------- Run | Yrd Mat Mat Peak Influence 295 | 25 295 238 Initial 16 | . 16 . Average 74 | 3 72 83 Maximum Alert Level 1 | . 1 1 Low Security (%) 95 | 100 94 98 Level 1 4 | . 5 1 Level 2 . | . . . Level 3 . | . . . Level 4 . | . . . Level 5 . | . . . High Security . | . . . Max Security . | . . . Squads Dispatched 7 | . 6 1 Investigation 5 | . 5 . Extermination . | . . . Reinforcement 2 | . 1 1 Assault . | . . . Garrison . | . . . Intercept . | . . . Searches Triggered . | . . . Construction Impeded . | . . . Haulers Reinforced . | . . . Active Scanning Responses . | . . . Cargo Convoy Interrupts . | . . . Stealth | -11 -10 -9 --------- Run | Yrd Mat Mat Distress Signals 3 | . 1 2 Communications Jammed . | . . . Distress Signals . | . . . Times Spotted 40 | 1 26 13 Peak Tracking Total 10 | 1 10 3 Tactical Retreats 1 | . 1 . Traps | -11 -10 -9 ------- Run | Yrd Mat Mat Traps Triggered . | . . . Indirectly . | . . . Trap Hack Attempts . | . . . Triggered . | . . . Disarmed . | . . . Reprogrammed . | . . . Reused . | . . . Traps Extracted . | . . . Installed . | . . . Triggered . | . . . Machines | -11 -10 -9 ---------- Run | Yrd Mat Mat Machines Disabled 6 | . 4 2 Max in Single Turn 2 | . 2 1 Machines Repaired . | . . . Machines Dismantled . | . . . Machines Sabotaged . | . . . Overloaded Fab Kills . | . . . Hacking | -11 -10 -9 --------- Run | Yrd Mat Mat Machines Accessed 9 | . 6 3 Terminals 7 | . 6 1 Fabricators . | . . . Repair Stations . | . . . Recycling Units 1 | . . 1 Scanalyzers 1 | . . 1 Garrison Access . | . . . Total Hacks 25 | . 17 8 Successful 13 | . 8 5 Failed 12 | . 9 3 Catastrophic 1 | . 1 . Database Lockouts . | . . . Manual 1 | . 1 . Terminals 18 | . 17 1 Fabricators . | . . . Repair Stations . | . . . Recycling Units 6 | . . 6 Scanalyzers 1 | . . 1 Garrison Access . | . . . Terminal Hacks 9 | . 8 1 Record 1 | . . 1 Alert Level 1 | . 1 . Unreport Threat 1 | . 1 . Locate Traps 4 | . 4 . Surveillance Status 1 | . 1 . Hauler Manifests 1 | . 1 . Fabricator Hacks . | . . . Repair Station Hacks . | . . . Recycling Unit Hacks 4 | . . 4 Recycle Component 2 | . . 2 Process 2 | . . 2 Scanalyzer . | . . . Garrison Access Hacks . | . . . Unauthorized Hacks . | . . . Terminals . | . . . Fabricators . | . . . Repair Stations . | . . . Recycling Units . | . . . Scanalyzers . | . . . Garrison Access . | . . . Data Cores Recovered 2 | . 1 1 Used . | . . . Hacking Detections 8 | . 6 2 Full Trace Events 5 | . 5 . Feedback Events 1 | . 1 . Corruption 1 | . 1 . Feedback Blocked . | . . . Robot Schematics Acquired . | . . . Robots Built . | . . . Authchips . | . . . Time . | . . . Total Robot Build Rating . | . . . Part Schematics Acquired . | . . . Parts Built . | . . . Authchips . | . . . Time . | . . . Total Part Build Rating . | . . . Parts Repaired . | . . . Time . | . . . Parts Recycled 2 | . . 2 Recycled Matter 143 | . . 143 Retrieved Matter . | . . . Retrieved Components . | . . . Parts Scanalyzed . | . . . Part Schematics Acquired . | . . . Parts Damaged . | . . . Bothacking | -11 -10 -9 ------------ Run | Yrd Mat Mat Used RIF Installer . | . . . Robots Hacked . | . . . Non-combat . | . . . Combat . | . . . Robot Hacks Applied . | . . . Relay Couplers Released . | . . . Fabnet Peak Effective % . | . . . Robots Rewired . | . . . Allies Hacked . | . . . Hacks Repelled . | . . . Allies | -11 -10 -9 -------- Run | Yrd Mat Mat Total Allies . | . . . Largest Group . | . . . Highest-Rated Group . | . . . Highest-Rated Ally . | . . . Total Orders . | . . . Ally Attacks . | . . . Total Damage . | . . . Kills . | . . . Allies Corrupted . | . . . Allies Melted . | . . . Intel | -11 -10 -9 ------- Run | Yrd Mat Mat Robot Analysis Total . | . . . Derelict Logs Recovered . | . . . Drone Launches . | . . . Drone Recoveries . | . . . Exploration | -11 -10 -9 ------------- Run | Yrd Mat Mat Turns Passed 4469 | 106 2914 1449 Spaces Moved 1927 | 81 1201 645 Core 21 | 18 . 3 Treads 23 | . . 23 Legs 1882 | 63 1201 618 Wheels . | . . . Hover . | . . . Flight 1 | . . 1 Fastest Speed 50 | 50 120 190 Average Speed 178 | 104 173 196 Slowest Speed 550 | 120 190 550 Overloaded Moves . | . . . Propulsion Burnouts . | . . . Robots Hopped . | . . . Cave-ins Triggered 1 | . . 1 Exploration Rate (%) 53 | 8 99 52 Regions Visited 2 Branch Regions . Pre-discovered Areas . | . . . Known Exits Taken . | . . . Unknown Exits Taken 2 | 1 1 . Scrap Searched . | . . . Spaces Dug 13 | . . 13 Terrain Destroyed 259 | . 44 215 Melee . | . . . Projectile . | . . . AOE 259 | . 44 215 Terrain Rammed . | . . . Walls Destroyed . | . . . Machines Disabled . | . . . Actions | -11 -10 -9 --------- Run | Yrd Mat Mat Total 2809 | 92 1941 776 Wait 738 | . 660 78 Move 1925 | 80 1200 645 Hop . | . . . Pick Up 17 | 2 7 8 Fast Attach 14 | 6 6 2 Attach 7 | . 2 5 Detach 5 | . 2 3 Swap 10 | . 7 3 Drop 10 | . 7 3 Fire 80 | 4 50 26 Melee . | . . . Ram . | . . . Kick . | . . . Crush 3 | . . 3 Escape Stasis . | . . . Rewire . | . . . Trap . | . . . Miscellaneous . | . . . Route ------- -11/Scrapyard -10/Materials (discovered 6 exits: *Mat x3 / [*Min x2] / [*Sub]) -9/Materials (discovered 3 exits: [*Mat x2] / [*Sto]) History --------- Turn | Location | Event 2 | -11/Scrapyard | Met Revision 17 87 | -11/Scrapyard | Discovered new exit (range 8) 107 | -11/Scrapyard | Entered Materials 309 | -10/Materials | Build established: Mutant 364 | -10/Materials | Destroyed 8 combat bots 455 | -10/Materials | Discovered new exit (range 3) 664 | -10/Materials | Build established: Scavenger-Mutant 1025 | -10/Materials | Discovered new exit (range 11) 1026 | -10/Materials | Core integrity fell below 50% 1120 | -10/Materials | Build established: Mutant 1289 | -10/Materials | Discovered new exit (range 7) 1359 | -10/Materials | Discovered new exit (range 6) 1666 | -10/Materials | Discovered new exit (range 16) 2582 | -10/Materials | Discovered new exit (range 6) 3021 | -10/Materials | Entered another Materials area 3021 | -9/Materials | Evolved 2 slots: Propulsion x2 3110 | -9/Materials | Crushed by falling debris 3419 | -9/Materials | Discovered new exit (range 6) 3555 | -9/Materials | Discovered new exit (range 11) 3772 | -9/Materials | Discovered new exit (range 5) 3994 | -9/Materials | Core integrity fell below 50% 4421 | -9/Materials | Lost 6 parts (4n2w) 4448 | -9/Materials | Core integrity fell below 20% 4470 | -9/Materials | Destroyed by Y-45 Defender with Heavy Assault Rifle Last Messages --------------- 04383_ U-05 Engineer lays Concrete. 04385_ U-05 Engineer builds a Wall. 04387_ U-05 Engineer lays Concrete. 04387_ Grenade Launcher destroyed. 04387_ Critical hit (Burn: +37). 04388_ U-05 Engineer lays Concrete. 04390_ Aluminum Leg destroyed. 04391_ U-05 Engineer lays Concrete. 04392_ IOVDY,|VR/>YZ #%GLG#VLEE|F#% 04392_ U-05 Engineer lays Concrete. 04392_ U-05 Engineer builds a Wall. 04398_ U-05 Engineer lays Concrete. 04400_ U-05 Engineer builds a Wall. 04400_ U-05 Engineer lays Concrete. 04423_ System corrupted: Substantial component data lost. 04424_ U-05 Engineer builds a Door. 04430_ Lgt. Armor Plating destroyed. 04439_ LEZH1UQ2ICIWSEMKAEU8=V TW 04457_ Slammed into G-34 Mercenary. 04470_ Lgt. Treads destroyed. Map ----- +----------------------------------------------------+ | ????#########?# # ]= #???????? | | ???## ### # #???????? | | ???## #### + #???????? | | ???# # ##### ## # #???????? | | ???# # = # # #???????? | | ???# # != # ########???????? | | ???# # # #??????????? | | ???# # # + < #??????????? | | ???# # # #??????????? | | ???### ## # #######????????? | | ?????##?# # #? ????????? | | ????????# # #? """????????? | | ????????# # +? """#???????? | | ????????########## # """#???????? | | ?????????? ?# # #???????? | | ?????????? ?# # ??????????? | | ?????????? """ ## ########???????? | | ???????# """ # ##! #???????? | | ???????# """ # ## ######### | | ???????#" "" ## ## """ ## # | | ???????#T """ ## ## """ ## # | | ???????#" =# # """ ## # | | ???????# ## ## ## " # | | ???###/######+###! ###+#### "" # | | " u # "" # | | "%" @ g/ """ # | | " Yg# "" # | | ### ########### ###### # """ # | | ??#???????????#####+####???# # """ # | | ??????????????# #???# # """ # | | ??????????????# """ #???# # " # | | ??????????????# """ #???# # # | | ??????????????# """ #???# ######## | | ??????????????# #???# #??????? | | ??????????????# """ ##### ####???? | | ??????????????# """ / #???? | | ??????????????# """ #####+## #???? | | ??????????????# ## # #???? | | ??????????????########### # ##??? | | ????????????????????????# """ # ##??? | | ?????????????########??## """ # ###?? | | ?????????????#!!!![[##### # # ##? | | ?????????????# !![[## # # # #? | | ?????????????#[[ ## ######## # #? | | ?????????????###### #### = # # # #?? | | ?????????########## * # # # #?? | | ?????????# # # #?? | | ???????###+######## #### = # [ ##? | | ???????# #####+## ## # [ # #? | | ???????# # # # # | +----------------------------------------------------+ Best States ------------- Heat Dissipation 35 Energy Generation 12 Energy Capacity 265 Matter Stores 300 Matter Capacity 400 Sight Range 18 Terrain Scan Density 10 Armor Coverage 150 Evasion (%) 55 Recoil Reduction 1 Item Schematics ----------------- None Robot Schematics ------------------ None Fabricated ------------ Nothing Alien Tech Used ----------------- None Achievements -------------- Crack Shot Everything Is Under Control Maybe Next Time I'll Detach My Launcher Shopping List Unlikely Earthworm Challenges ------------ None Game ------ Seed PotentialLinearNanoactuators Manual? 0 Play Time 00:41:51 Cumulative 2.2 hours Start 2024.05.21 @ 13:03:56 End 2024.05.21 @ 15:03:54 Sessions 6 Manual Loads 0 Difficulty Rogue Special Mode None Game No. 3 Rogue 3 Adventurer 0 Explorer 0 Win Type - Total 0 Types 0/0/0/0/0/0/0/0/0 Lore% 1 Gallery% 3 Achievement% 5 Wizard Run 0 Options --------- Layout 0 ASCII 0 Keyboard 1 Movement Numpad Keybinds 0 Fullscreen 2 Font 24/Smallcaps Map View 76x50 Zoom Use 0% Tactical HUD 1 Map Filters NONE Filters NONE Steam 0 RUN: b07002be-5a47-4b92-9541-8acc37fc441f